bitfinex/quotes_BTCUSD_20240821
["timestamp","ask_amount","ask_price","bid_price","bid_amount"]
[1724244158367,0.00821,59686.0,59678.0,1.31499326]
[1724244158572,0.00821,59686.0,59678.0,1.46139326]
[1724244159156,0.00821,59686.0,59678.0,0.69261147]
[1724244159390,0.00821,59686.0,59678.0,1.03674247]
[1724244159599,0.00821,59686.0,59678.0,1.01974247]
[1724244159814,0.00821,59686.0,59678.0,1.03274247]
[1724244159992,0.00821,59686.0,59678.0,0.69761147]
[1724244160454,0.00821,59686.0,59678.0,0.53004647]
[1724244160698,0.00821,59686.0,59680.0,0.167557]
[1724244160911,0.00821,59686.0,59678.0,0.03091249]
[1724244160912,0.00821,59686.0,59681.0,0.16400298]
[1724244161130,0.00821,59686.0,59683.0,0.16755]
[1724244161344,0.00821,59686.0,59684.0,0.16400298]
[1724244161568,0.00821,59686.0,59684.0,0.18187116]
[1724244162214,0.00821,59686.0,59685.0,0.16400298]
[1724244162456,0.00821,59686.0,59684.0,0.01786818]
[1724244162687,0.00821,59686.0,59685.0,0.01563216]
[1724244162919,0.00821,59686.0,59685.0,0.17963514]
[1724244163778,0.00821,59686.0,59685.0,0.01563216]
[1724244163956,0.175753,59686.0,59685.0,0.01563216]
[1724244164208,0.175753,59686.0,59684.0,0.007]
[1724244164209,0.167546,59685.0,59684.0,0.007]
[1724244164415,0.167549,59684.0,59672.0,0.2]
[1724244164621,0.167549,59684.0,59673.0,0.16400298]
[1724244164827,0.0653,59685.0,59673.0,0.18197914]
[1724244165029,0.0653,59685.0,59675.0,0.167573]
[1724244165237,0.0653,59685.0,59676.0,0.16400298]
[1724244165439,0.16773725,59689.0,59684.0,0.002]
[1724244166073,0.16773725,59689.0,59677.0,0.167568]
[1724244166074,0.00020225,59689.0,59677.0,0.167568]
[1724244166289,0.00020225,59689.0,59678.0,0.16400298]
[1724244166493,0.00020225,59689.0,59685.0,0.01794509]
[1724244166697,0.00020225,59689.0,59678.0,0.16400298]
[1724244166902,0.00020225,59689.0,59678.0,0.33156798]
[1724244167089,0.00020225,59689.0,59686.0,0.01794223]
[1724244167338,0.00020225,59689.0,59679.0,0.02131304]
[1724244167544,0.001,59685.0,59679.0,0.1673538]
[1724244167990,0.00020225,59689.0,59679.0,0.1673538]
[1724244168196,0.00020225,59689.0,59678.0,0.167564]
[1724244168197,0.00220225,59689.0,59680.0,0.16400298]
[1724244168402,0.00020225,59689.0,59680.0,0.16400298]
[1724244168823,0.00020225,59689.0,59681.0,0.00335076]
[1724244169031,0.00020225,59689.0,59682.0,0.16400298]
[1724244169459,0.00220225,59689.0,59682.0,0.33155698]
[1724244169659,0.00220225,59689.0,59683.0,0.167551]
[1724244169869,0.00220225,59689.0,59683.0,0.33155398]
[1724244170081,0.00220225,59689.0,59683.0,0.16400298]
[1724244170292,0.00220225,59689.0,59684.0,0.16400298]
[1724244170511,0.0781,59688.0,59672.0,0.0766]
[1724244170727,0.0781,59688.0,59668.0,0.3]
[1724244170728,0.0781,59684.0,59665.0,0.07939254]
[1724244170943,0.00885123,59688.0,59664.0,0.49229154]
[1724244170944,0.585114,59676.0,59664.0,0.49229154]
[1724244171154,0.249971,59676.0,59664.0,0.49229154]
[1724244171560,0.249971,59676.0,59662.0,0.000902]
[1724244171772,0.585114,59676.0,59662.0,0.168512]
[1724244171987,0.585114,59676.0,59675.0,1.001]
[1724244172201,0.585114,59676.0,59675.0,1.0]
[1724244172436,0.981257,59676.0,59675.0,1.0]
[1724244172638,0.982257,59676.0,59675.0,1.0]
[1724244173933,0.981257,59676.0,59675.0,1.0]
[1724244174356,0.985257,59676.0,59675.0,1.0]
[1724244174813,0.988257,59676.0,59675.0,1.0]
[1724244175450,0.314971,59676.0,59675.0,1.0]
[1724244175879,0.317971,59676.0,59675.0,1.0]
[1724244177149,0.988257,59676.0,59675.0,1.0]
[1724244177358,0.653114,59676.0,59675.0,1.0]
[1724244177591,0.988257,59676.0,59675.0,1.0]
[1724244178424,1.3244,59676.0,59675.0,1.0]
[1724244178632,0.989257,59676.0,59675.0,1.0]
[1724244178841,1.3244,59676.0,59675.0,1.0]
[1724244179259,1.49040298,59676.0,59675.0,1.0]
[1724244179473,1.59040298,59676.0,59675.0,1.0]
[1724244179729,1.58740298,59676.0,59675.0,1.0]
[1724244179934,1.58840298,59676.0,59675.0,1.0]
[1724244180559,1.6913418,59676.0,59675.0,1.0]
[1724244180990,2.0264848,59676.0,59675.0,1.0]
[1724244181200,2.05471204,59676.0,59675.0,1.0]
[1724244181436,2.38985504,59676.0,59675.0,1.0]
[1724244181649,2.3256278,59676.0,59675.0,0.62329106]
[1724244181854,2.3256278,59676.0,59675.0,0.62049106]
[1724244182060,2.3186278,59676.0,59675.0,0.50265697]
[1724244182509,2.3216278,59676.0,59675.0,0.48843106]
[1724244182926,2.3216278,59676.0,59675.0,0.30358606]
[1724244182927,2.2372278,59676.0,59675.0,0.30358606]
[1724244183135,2.2362278,59676.0,59675.0,0.19505606]
[1724244183348,2.2362278,59676.0,59675.0,0.19595806]
[1724244183557,0.001,59663.0,59662.0,0.000902]
[1724244183770,1.67747498,59663.0,59662.0,0.000902]
[1724244183988,1.80047498,59663.0,59662.0,0.000902]
[1724244184204,2.13569098,59663.0,59662.0,0.000902]
[1724244184618,0.602824,59663.0,59662.0,0.000902]
[1724244184873,0.614824,59663.0,59662.0,0.001902]
[1724244185083,0.95004,59663.0,59662.0,0.001902]
[1724244185518,1.54426298,59663.0,59662.0,0.001902]
[1724244185726,1.54226298,59663.0,59662.0,0.001902]
[1724244186174,1.55426298,59663.0,59662.0,0.002902]
[1724244186387,1.54426298,59663.0,59662.0,0.001902]
[1724244186602,1.55426298,59663.0,59662.0,0.002902]
[1724244189142,0.624824,59663.0,59662.0,0.002902]
[1724244190500,0.022,59663.0,59662.0,0.145802]
[1724244190913,0.022,59663.0,59662.0,0.161157]
[1724244191143,0.017316,59663.0,59662.0,0.161157]
[1724244191595,0.007316,59663.0,59662.0,0.32751197]
[1724244191807,0.335112,59682.0,59662.0,0.57778098]
[1724244192011,0.167568,59678.0,59665.0,0.0755]
[1724244192422,0.335127,59679.0,59667.0,0.0755]
[1724244192603,0.167572,59676.0,59667.0,0.0755]
[1724244192858,0.167572,59676.0,59668.0,0.01533786]
[1724244193078,0.335097,59685.0,59668.0,0.01533786]
[1724244193079,0.00102225,59689.0,59671.0,0.2919]
[1724244193286,0.00102225,59689.0,59676.0,0.081]
[1724244193500,0.00102225,59689.0,59677.0,0.0651]
[1724244193501,0.167538,59688.0,59677.0,0.0651]
[1724244193917,0.00102225,59689.0,59677.0,0.08041215]
[1724244194135,0.16855725,59689.0,59677.0,0.08041215]
[1724244194355,0.001,59678.0,59677.0,0.15961215]
[1724244194569,0.005,59678.0,59677.0,0.15961215]
[1724244194773,0.004,59678.0,59677.0,0.15961215]
[1724244195200,0.001,59688.0,59677.0,0.16061215]
[1724244195408,0.00502225,59689.0,59677.0,0.16061215]
[1724244195616,0.00082,59679.0,59677.0,0.17061215]
[1724244196042,0.00082,59679.0,59677.0,0.16961215]
[1724244196482,0.00082,59679.0,59678.0,0.0795]
[1724244196706,0.00082,59679.0,59678.0,0.24350298]
[1724244196918,0.00082,59679.0,59678.0,0.25878959]
[1724244197338,0.00082,59679.0,59678.0,0.09478661]
[1724244198191,0.00082,59679.0,59678.0,0.10378661]
[1724244199899,0.00082,59679.0,59678.0,0.11178661]
[1724244200600,0.503509,59679.0,59678.0,0.11178661]
[1724244200818,0.5538599,59679.0,59678.0,0.11178661]
[1724244201040,0.8889859,59679.0,59678.0,0.008]
[1724244201458,0.16758,59673.0,59671.0,0.0754]
[1724244201879,0.16758,59673.0,59672.0,0.01528355]
[1724244202084,0.16758,59673.0,59671.0,0.0754]
[1724244202698,0.16737831,59673.0,59671.0,0.0824]
[1724244202910,0.502726,59675.0,59671.0,0.0824]
[1724244203332,0.167575,59675.0,59671.0,0.0824]
[1724244203748,0.335946,59679.0,59671.0,0.0824]
[1724244203974,0.168384,59679.0,59672.0,0.008]
[1724244204182,0.168384,59679.0,59672.0,0.01528355]
[1724244204389,0.167566,59678.0,59671.0,0.0884]
[1724244204614,0.167566,59678.0,59671.0,0.0814]
[1724244204868,0.168383,59679.0,59672.0,0.01528355]
[1724244205292,0.00082,59679.0,59674.0,0.0612]
[1724244205501,0.00082,59679.0,59675.0,0.0769]
[1724244205911,0.00082,59679.0,59675.0,0.09217498]
[1724244206332,0.00082,59679.0,59675.0,0.42710316]
[1724244206548,0.00082,59679.0,59676.0,0.0828]
[1724244206760,0.00082,59679.0,59678.0,0.250365]
[1724244206981,0.00082,59679.0,59678.0,0.74949898]
[1724244207188,0.00082,59679.0,59678.0,0.09806933]
[1724244208262,0.00082,59679.0,59678.0,0.10906933]
[1724244208474,0.00082,59679.0,59678.0,0.09806933]
[1724244208892,0.00082,59679.0,59678.0,0.10506933]
[1724244209103,0.00082,59679.0,59678.0,0.43663731]
[1724244209432,0.00082,59679.0,59678.0,0.26907231]
[1724244209846,0.00082,59679.0,59678.0,0.10506933]
[1724244210028,0.00082,59679.0,59678.0,0.09806933]
[1724244210442,0.00082,59679.0,59678.0,0.10906933]
[1724244211051,0.168383,59679.0,59678.0,0.10906933]
[1724244211256,0.168383,59679.0,59678.0,0.0828]
[1724244211499,0.503509,59679.0,59678.0,0.0898]
[1724244211709,0.168383,59679.0,59678.0,0.0928]
[1724244211912,0.503509,59679.0,59678.0,0.0928]
[1724244212125,0.168383,59679.0,59678.0,0.0838]
[1724244212969,0.00082,59679.0,59678.0,0.0838]
[1724244213191,0.168383,59679.0,59678.0,0.0838]
[1724244213393,0.00082,59679.0,59678.0,0.0838]
[1724244213610,0.00082,59679.0,59678.0,0.0828]
[1724244213818,0.00082,59679.0,59678.0,0.0838]
[1724244214025,0.00082,59679.0,59678.0,0.09906617]
[1724244214680,0.00082,59679.0,59678.0,0.09806617]
[1724244214884,0.00082,59679.0,59678.0,0.10506617]
[1724244215316,0.00082,59679.0,59678.0,0.09806617]
[1724244215707,0.00082,59679.0,59678.0,0.10606617]
[1724244216130,0.00082,59679.0,59678.0,0.11406617]
[1724244216987,0.00082,59679.0,59678.0,0.10606617]
[1724244217199,0.00082,59679.0,59678.0,0.11506617]
[1724244218441,0.168383,59679.0,59678.0,0.03226617]
[1724244218557,0.503509,59679.0,59678.0,0.03226617]
[1724244218759,0.503509,59679.0,59678.0,0.017]
[1724244219165,0.503509,59679.0,59678.0,0.009]
[1724244220451,0.167569,59677.0,59674.0,0.08]
[1724244220858,0.167566,59678.0,59674.0,0.08]
[1724244221689,0.167566,59678.0,59674.0,0.082]
[1724244221887,0.00082,59679.0,59674.0,0.085]
[1724244222115,0.168384,59679.0,59675.0,0.01527538]
[1724244222319,0.00082,59679.0,59676.0,0.0813]
[1724244222520,0.00082,59679.0,59676.0,0.09657252]
[1724244222781,0.00082,59679.0,59676.0,0.0813]
[1724244222984,0.001,59678.0,59676.0,0.0813]
[1724244224607,0.00082,59679.0,59674.0,0.0766]
[1724244224790,0.00082,59679.0,59676.0,0.001]
[1724244224791,0.335948,59679.0,59676.0,0.001]
[1724244224990,0.16757,59677.0,59674.0,0.0766]
[1724244225353,0.16757,59677.0,59676.0,0.002]
[1724244225577,0.16757,59677.0,59674.0,0.0766]
[1724244226369,0.167572,59676.0,59674.0,0.0766]
[1724244226897,0.167573,59676.0,59674.0,0.0766]
[1724244227242,0.167574,59675.0,59674.0,0.0766]
[1724244228211,0.167574,59675.0,59674.0,0.0786]
[1724244228632,0.167574,59675.0,59674.0,0.0766]
[1724244228833,0.167574,59675.0,59674.0,0.0796]
[1724244229734,0.335138,59677.0,59674.0,0.0816]
[1724244229939,0.167574,59676.0,59674.0,0.0816]
[1724244231008,0.167574,59675.0,59674.0,0.0816]
[1724244231414,0.167574,59675.0,59674.0,0.0786]
[1724244231616,0.167574,59675.0,59674.0,0.0766]
[1724244231824,0.167574,59675.0,59674.0,0.0776]
[1724244232429,0.167574,59675.0,59674.0,0.0806]
[1724244232691,0.167574,59675.0,59674.0,0.0796]
[1724244232976,0.502722,59675.0,59674.0,0.0816]
[1724244233178,0.83787,59675.0,59674.0,0.0816]
[1724244233386,0.83787,59675.0,59674.0,0.005]
[1724244236624,0.95627723,59675.0,59674.0,0.005]
[1724244237070,0.83787,59675.0,59674.0,0.005]
[1724244237504,0.502722,59675.0,59674.0,0.005]
[1724244239762,0.83787,59675.0,59674.0,0.005]
[1724244239956,0.502722,59675.0,59674.0,0.005]
[1724244240626,0.83787,59675.0,59674.0,0.005]
[1724244240836,1.42127218,59675.0,59674.0,0.005]
[1724244241516,1.42427218,59675.0,59674.0,0.005]
[1724244241743,1.42127218,59675.0,59674.0,0.002]
[1724244241987,1.42127218,59675.0,59673.0,0.000902]
[1724244241988,1.509193,59674.0,59673.0,0.000902]
[1724244242214,1.94073019,59674.0,59673.0,0.000902]
[1724244242701,1.9145054,59674.0,59673.0,0.000902]
[1724244242928,1.77219598,59674.0,59673.0,0.000902]
[1724244244717,1.43704198,59674.0,59673.0,0.000902]
[1724244245190,1.43704198,59674.0,59673.0,0.001902]
[1724244245387,1.44304198,59674.0,59673.0,0.002902]
[1724244245590,1.58742838,59674.0,59673.0,0.002902]
[1724244245751,1.59659686,59674.0,59673.0,0.002902]
[1724244245926,0.608731,59674.0,59673.0,0.082102]
[1724244246245,0.602731,59674.0,59673.0,0.081102]
[1724244246449,0.608731,59674.0,59673.0,0.082102]
[1724244246604,0.608731,59674.0,59673.0,0.081102]
[1724244246806,0.006,59674.0,59673.0,0.081102]
[1724244248145,0.167575,59675.0,59673.0,0.081102]
[1724244248376,0.000822,59676.0,59673.0,0.081102]
[1724244248377,0.006,59674.0,59673.0,0.081102]
[1724244248618,0.006,59674.0,59673.0,0.145502]
[1724244248853,0.168394,59676.0,59673.0,0.144502]
[1724244249084,0.167576,59675.0,59673.0,0.144502]
[1724244249318,0.004,59674.0,59673.0,0.144502]
[1724244249787,0.167576,59675.0,59673.0,0.144502]
[1724244249997,0.167576,59675.0,59673.0,0.145502]
[1724244250826,0.174393,59676.0,59673.0,0.145502]
[1724244251934,0.167576,59675.0,59673.0,0.144502]
[1724244252143,0.167577,59674.0,59673.0,0.144502]
[1724244252347,0.171577,59674.0,59673.0,0.144502]
[1724244252961,0.167577,59674.0,59673.0,0.144502]
[1724244253600,0.5870988,59674.0,59673.0,0.000902]
[1724244253823,0.9222528,59674.0,59673.0,0.000902]
[1724244254695,0.837885,59674.0,59673.0,0.000902]
[1724244256150,0.841885,59674.0,59673.0,0.000902]
[1724244256581,1.34104198,59674.0,59673.0,0.000902]
[1724244257420,1.34186398,59674.0,59673.0,0.000902]
[1724244258039,1.44186398,59674.0,59673.0,0.000902]
[1724244258244,1.58755628,59674.0,59673.0,0.000902]
[1724244258445,1.58855628,59674.0,59673.0,0.000902]
[1724244258671,1.58755628,59674.0,59673.0,0.000902]
[1724244260917,1.44186398,59674.0,59673.0,0.000902]
[1724244261831,0.507553,59674.0,59673.0,0.000902]
[1724244262034,0.172399,59674.0,59673.0,0.000902]
[1724244262262,0.004822,59674.0,59673.0,0.079002]
[1724244262441,0.004822,59674.0,59673.0,0.09430848]
[1724244266298,0.00462031,59674.0,59673.0,0.09430848]
[1724244266726,0.00462031,59674.0,59673.0,0.079002]
[1724244267778,0.50735131,59674.0,59673.0,0.079002]
[1724244268000,0.50735131,59674.0,59673.0,0.000902]
[1724244268001,1.00650829,59674.0,59673.0,0.000902]
[1724244268210,1.10466177,59674.0,59673.0,0.000902]
[1724244269479,1.00650829,59674.0,59673.0,0.000902]
[1724244270233,1.34166229,59674.0,59673.0,0.000902]
[1724244271638,0.84250531,59674.0,59673.0,0.000902]
[1724244272653,0.84250531,59674.0,59673.0,0.075902]
[1724244273158,0.17219731,59674.0,59673.0,0.140302]
[1724244273356,0.17219731,59674.0,59673.0,0.1556041]
[1724244273717,0.17219731,59674.0,59673.0,0.140302]
[1724244276473,0.50735131,59674.0,59673.0,0.140302]
[1724244278995,0.67135429,59674.0,59673.0,0.000902]
[1724244279200,1.82703912,59674.0,59673.0,0.000902]
[1724244279403,2.12043912,59674.0,59673.0,0.000902]
[1724244279608,2.12243912,59674.0,59673.0,0.000902]
[1724244279817,2.28261959,59674.0,59673.0,0.000902]
[1724244280040,2.61777359,59674.0,59673.0,0.000902]
[1724244280467,2.65405735,59674.0,59673.0,0.002902]
[1724244280876,2.65405735,59674.0,59673.0,0.001902]
[1724244280877,2.65005735,59674.0,59673.0,0.001902]
[1724244281082,2.65005735,59674.0,59673.0,0.002902]
[1724244281339,2.65405735,59674.0,59673.0,0.002902]
[1724244281549,2.65005735,59674.0,59673.0,0.001902]
[1724244281748,2.65405735,59674.0,59673.0,0.002902]
[1724244282135,2.64805735,59674.0,59673.0,0.001902]
[1724244282338,2.64805735,59674.0,59673.0,0.002902]
[1724244282339,2.66105735,59674.0,59673.0,0.002902]
[1724244282896,2.64805735,59674.0,59673.0,0.001902]
[1724244283291,2.65705735,59674.0,59673.0,0.001902]
[1724244284082,2.66405735,59674.0,59673.0,0.002902]
[1724244284283,2.65105735,59674.0,59673.0,0.001902]
[1724244284482,2.64405735,59674.0,59673.0,0.000902]
[1724244284692,2.65105735,59674.0,59673.0,0.001902]
[1724244285112,2.97921135,59674.0,59673.0,1e-06]
[1724244285324,2.97921135,59674.0,59667.0,0.000902]
[1724244285325,1.848534,59668.0,59667.0,0.000902]
[1724244285542,2.13875981,59668.0,59667.0,0.000902]
[1724244285955,2.49694781,59668.0,59667.0,0.000902]
[1724244286575,2.78834781,59668.0,59667.0,0.000902]
[1724244286783,2.79834781,59668.0,59667.0,0.001902]
[1724244286990,2.96232659,59668.0,59667.0,0.001902]
[1724244287198,2.96632659,59668.0,59667.0,0.002902]
[1724244291913,2.97571218,59668.0,59667.0,1e-06]
[1724244293268,2.97571218,59668.0,59667.0,2e-07]
[1724244300956,2.97471218,59668.0,59667.0,2e-07]
[1724244301162,1.8229574,59668.0,59667.0,0.1443002]
[1724244301392,1.7219574,59668.0,59667.0,0.1443002]
[1724244301595,1.36054657,59668.0,59667.0,0.1443002]
[1724244302009,1.02535857,59668.0,59667.0,0.1443002]
[1724244302220,1.01597298,59668.0,59667.0,0.1443002]
[1724244302625,1.00597298,59668.0,59667.0,0.1443002]
[1724244303045,0.506782,59668.0,59667.0,0.1443002]
[1724244303424,0.516782,59668.0,59667.0,0.1453002]
[1724244303634,0.277594,59668.0,59667.0,0.1453002]
[1724244303796,0.11,59668.0,59667.0,0.1453002]
[1724244304020,0.167591,59669.0,59667.0,0.1443002]
[1724244304220,0.167591,59669.0,59668.0,0.143]
[1724244304492,0.1,59669.0,59668.0,0.143]
[1724244304791,0.267591,59669.0,59668.0,0.143]
[1724244305419,0.33517,59672.0,59667.0,0.0010002]
[1724244305420,0.000822,59668.0,59667.0,0.0010002]
[1724244305734,0.002822,59668.0,59667.0,0.0010002]
[1724244305929,0.002822,59668.0,59667.0,0.1456002]
[1724244306399,0.002822,59668.0,59667.0,0.16441988]
[1724244306533,0.004,59669.0,59667.0,0.01881988]
[1724244306741,0.004,59669.0,59668.0,0.1425]
[1724244306952,0.000822,59673.0,59668.0,0.1425]
[1724244307159,0.000822,59673.0,59670.0,0.1406]
[1724244307366,0.000822,59673.0,59671.0,0.01880368]
[1724244307573,0.000822,59673.0,59672.0,0.1406]
[1724244307772,0.000822,59673.0,59672.0,0.15939968]
[1724244308537,0.005822,59673.0,59672.0,0.15939968]
[1724244308769,0.000822,59673.0,59672.0,0.15939968]
[1724244309185,0.005822,59673.0,59672.0,0.16039968]
[1724244309398,0.000822,59673.0,59672.0,0.15939968]
[1724244309609,0.008822,59673.0,59672.0,0.15939968]
[1724244309822,0.176401,59673.0,59672.0,0.15939968]
[1724244310029,0.51156,59673.0,59672.0,0.15939968]
[1724244310253,0.8900394,59673.0,59672.0,0.15939968]
[1724244310459,0.8900394,59673.0,59672.0,0.16139968]
[1724244310664,0.8900394,59673.0,59672.0,0.1426]
[1724244310873,0.8900394,59673.0,59672.0,0.1456]
[1724244311081,0.8900394,59673.0,59672.0,0.1406]
[1724244311294,0.838719,59673.0,59672.0,0.1406]
[1724244311505,0.843719,59673.0,59672.0,0.1406]
[1724244314015,0.173401,59673.0,59672.0,0.1406]
[1724244314450,0.50856,59673.0,59672.0,0.1406]
[1724244316821,0.53483519,59673.0,59672.0,0.1406]
[1724244318526,0.86999419,59673.0,59672.0,0.1406]
[1724244320030,1.36915617,59673.0,59672.0,0.0778]
[1724244320233,0.83797,59668.0,59667.0,2e-07]
[1724244320556,2.06474898,59668.0,59667.0,2e-07]
[1724244320729,2.22872776,59668.0,59667.0,2e-07]
[1724244321108,1.93732776,59668.0,59667.0,2e-07]
[1724244321311,1.93632776,59668.0,59667.0,2e-07]
[1724244321766,1.93632776,59668.0,59667.0,0.0787002]
[1724244321958,1.44016098,59668.0,59667.0,0.0797002]
[1724244322133,1.43716098,59668.0,59667.0,0.1442002]
[1724244322336,1.43716098,59668.0,59667.0,0.1422002]
[1724244322565,1.10197298,59668.0,59667.0,0.1422002]
[1724244323060,0.93797,59668.0,59667.0,0.1422002]
[1724244323731,0.94597,59668.0,59667.0,0.1432002]
[1724244323939,0.95097,59668.0,59667.0,0.1432002]
[1724244324144,0.180594,59668.0,59667.0,0.1432002]
[1724244324361,0.188594,59668.0,59667.0,0.1442002]
[1724244324569,0.188594,59668.0,59667.0,0.1432002]
[1724244324570,0.008,59668.0,59667.0,0.1432002]
[1724244324982,0.021,59668.0,59667.0,0.16110892]
[1724244325181,0.013,59668.0,59667.0,0.1432002]
[1724244325428,0.167591,59669.0,59668.0,0.0783]
[1724244325654,0.02709719,59673.0,59668.0,0.0783]
[1724244325655,0.167584,59672.0,59668.0,0.1431]
[1724244325857,0.167584,59672.0,59670.0,0.0809]
[1724244326275,0.02709719,59673.0,59670.0,0.0809]
[1724244326480,0.02709719,59673.0,59671.0,0.0603]
[1724244326732,0.19467619,59673.0,59672.0,0.0796]
[1724244326942,0.52983519,59673.0,59672.0,0.0796]
[1724244327409,0.61649741,59673.0,59672.0,0.0796]
[1724244327662,0.62149741,59673.0,59672.0,0.0796]
[1724244327871,0.19967619,59673.0,59672.0,0.0796]
[1724244328044,0.19467619,59673.0,59672.0,0.145]
[1724244328255,0.19967619,59673.0,59672.0,0.145]
[1724244328457,0.20567619,59673.0,59672.0,0.146]
[1724244329103,0.03809719,59673.0,59672.0,0.146]
[1724244329542,0.03789548,59673.0,59672.0,0.146]
[1724244331109,0.03789548,59673.0,59672.0,0.16287446]
[1724244331835,0.20547448,59673.0,59672.0,0.16287446]
[1724244332055,0.54063348,59673.0,59672.0,0.16287446]
[1724244332473,0.54063348,59673.0,59672.0,0.146]
[1724244332685,0.87579248,59673.0,59672.0,0.146]
[1724244333320,1.46269811,59673.0,59672.0,0.0806]
[1724244333539,1.46269811,59673.0,59672.0,0.001]
[1724244333997,1.37495446,59673.0,59672.0,0.001]
[1724244335296,1.37495446,59673.0,59672.0,0.0792]
[1724244335297,1.03979546,59673.0,59672.0,0.0792]
[1724244336007,0.87579248,59673.0,59672.0,0.0792]
[1724244340755,0.54063348,59673.0,59672.0,0.0792]
[1724244343104,0.54063348,59673.0,59672.0,0.0801042]
[1724244343311,0.54063348,59673.0,59672.0,0.1421042]
[1724244343312,0.03789548,59673.0,59672.0,0.1421042]
[1724244348815,0.03789548,59673.0,59672.0,0.15950878]
[1724244349032,0.20547448,59673.0,59672.0,0.15950878]
[1724244349238,0.20547448,59673.0,59672.0,0.1421042]
[1724244349853,0.87579248,59673.0,59672.0,0.1421042]
[1724244350268,0.87579248,59673.0,59672.0,0.0019042]
[1724244350269,1.46269811,59673.0,59672.0,0.0019042]
[1724244350683,1.37495446,59673.0,59672.0,0.0019042]
[1724244350901,1.3840741,59673.0,59672.0,0.0019042]
[1724244354921,1.3790741,59673.0,59672.0,0.0019042]
[1724244355814,1.3798961,59673.0,59672.0,0.0019042]
[1724244356251,1.3798961,59673.0,59672.0,0.0782042]
[1724244357967,0.54557512,59673.0,59672.0,0.0782042]
[1724244358190,0.20129648,59673.0,59672.0,0.1431042]
[1724244358398,0.03371748,59673.0,59672.0,0.1431042]
[1724244358813,0.03371748,59673.0,59672.0,0.16051228]
[1724244359030,0.03371748,59673.0,59672.0,0.1431042]
[1724244359850,0.02871748,59673.0,59672.0,0.1431042]
[1724244360052,0.011822,59673.0,59672.0,0.1431042]
[1724244361078,0.011822,59673.0,59672.0,0.16051228]
[1724244363263,0.03809686,59673.0,59672.0,0.16051228]
[1724244364162,0.03309686,59673.0,59672.0,0.16051228]
[1724244368954,0.000822,59674.0,59673.0,0.1402]
[1724244369165,0.000822,59674.0,59673.0,1.01456519]
[1724244369368,0.000822,59674.0,59673.0,1.6554911]
[1724244369587,0.000822,59674.0,59673.0,1.53076201]
[1724244370217,0.007822,59674.0,59673.0,1.53176201]
[1724244370839,0.000822,59674.0,59673.0,1.53076201]
[1724244371044,0.001822,59674.0,59673.0,1.53076201]
[1724244371338,0.001822,59674.0,59673.0,1.54476201]
[1724244372102,0.001822,59674.0,59673.0,1.55876201]
[1724244372306,0.001822,59674.0,59673.0,1.68337689]
[1724244374415,0.001822,59674.0,59673.0,1.65841122]
[1724244374616,0.001822,59674.0,59673.0,1.63350408]
[1724244374766,0.001822,59674.0,59673.0,1.26187689]
[1724244375653,0.001822,59674.0,59673.0,1.5587419]
[1724244375855,0.001822,59674.0,59673.0,1.68335678]
[1724244376055,0.001822,59674.0,59673.0,1.5587419]
[1724244376469,0.001822,59674.0,59673.0,1.68335678]
[1724244376883,0.001822,59674.0,59673.0,1.5587419]
[1724244377310,0.001822,59674.0,59673.0,1.68335678]
[1724244377532,0.001822,59674.0,59673.0,1.65837195]
[1724244378563,0.001822,59674.0,59673.0,1.18713482]
[1724244378778,0.001822,59674.0,59673.0,1.6334378]
[1724244379015,0.001822,59674.0,59673.0,1.55873522]
[1724244379220,0.001822,59674.0,59673.0,1.63343481]
[1724244380050,0.001822,59674.0,59673.0,1.26183441]
[1724244380271,0.001822,59674.0,59673.0,0.90177749]
[1724244380499,0.001822,59674.0,59673.0,0.12413484]
[1724244381338,0.000822,59674.0,59673.0,0.11013484]
[1724244381550,0.000822,59674.0,59673.0,0.09613484]
[1724244381911,0.001822,59674.0,59673.0,0.11513484]
[1724244383260,0.000822,59674.0,59673.0,0.10613484]
[1724244383607,0.169399,59674.0,59673.0,0.03603484]
[1724244384573,0.168399,59674.0,59673.0,0.02703484]
[1724244384779,0.168399,59674.0,59673.0,0.01703484]
[1724244385008,0.168399,59674.0,59672.0,0.0009042]
[1724244385009,0.167579,59673.0,59672.0,0.0009042]
[1724244386056,0.502738,59673.0,59672.0,0.0009042]
[1724244386260,0.167579,59673.0,59672.0,0.0009042]
[1724244386927,1.00189998,59673.0,59672.0,0.0009042]
[1724244387335,1.33705898,59673.0,59672.0,0.0009042]
[1724244387968,1.33705898,59673.0,59672.0,0.0019042]
[1724244388177,1.33705898,59673.0,59672.0,0.0039042]
[1724244388379,1.33705898,59673.0,59672.0,0.0029042]
[1724244388581,1.33705898,59673.0,59672.0,0.0009042]
[1724244389011,1.33805898,59673.0,59672.0,0.0009042]
[1724244389568,1.47559495,59673.0,59672.0,0.0009042]
[1724244389968,1.51349495,59673.0,59672.0,0.0009042]
[1724244390425,1.37595898,59673.0,59672.0,0.0009042]
[1724244390595,1.71211798,59673.0,59672.0,0.0009042]
[1724244391413,1.71011798,59673.0,59672.0,0.0009042]
[1724244391620,1.74011798,59673.0,59672.0,0.0019042]
[1724244392045,1.74011798,59673.0,59672.0,0.0029042]
[1724244392046,1.74311798,59673.0,59672.0,0.0029042]
[1724244392246,1.74011798,59673.0,59672.0,0.0019042]
[1724244392671,1.74311798,59673.0,59672.0,0.0029042]
[1724244392830,1.74011798,59673.0,59672.0,0.0019042]
[1724244393042,1.71611798,59673.0,59672.0,0.0019042]
[1724244393253,1.34005898,59673.0,59672.0,0.0019042]
[1724244394216,1.01689998,59673.0,59672.0,0.0029042]
[1724244394447,1.01689998,59673.0,59672.0,0.0019042]
[1724244394448,1.01389998,59673.0,59672.0,0.0019042]
[1724244394648,1.00189998,59673.0,59672.0,0.0009042]
[1724244394860,1.00589998,59673.0,59672.0,0.0019042]
[1724244395066,1.01789998,59673.0,59672.0,0.0029042]
[1724244395300,1.16052425,59673.0,59672.0,0.0029042]
[1724244395509,1.49568325,59673.0,59672.0,0.0029042]
[1724244395721,1.49168325,59673.0,59672.0,0.0019042]
[1724244395927,1.38495898,59673.0,59672.0,0.0019042]